bitfinex/quotes_BTCUSD_20240819
["timestamp","ask_amount","ask_price","bid_price","bid_amount"]
[1724101857752,2.19217065,59193.0,59192.0,0.0009042]
[1724101857962,1.76391777,59193.0,59192.0,0.0009042]
[1724101858161,0.76946377,59193.0,59192.0,0.0009042]
[1724101858362,1.10734077,59193.0,59192.0,0.0009042]
[1724101858908,0.76946377,59193.0,59192.0,0.0009042]
[1724101859144,0.75546377,59193.0,59192.0,0.0009042]
[1724101859352,0.76946377,59193.0,59192.0,0.0009042]
[1724101859699,1.07934077,59193.0,59192.0,0.0009042]
[1724101859929,1.10734077,59193.0,59192.0,0.0009042]
[1724101860203,0.19934877,59193.0,59192.0,0.0009042]
[1724101860478,1.04404077,59193.0,59192.0,0.0009042]
[1724101860656,1.15474485,59193.0,59192.0,0.0009042]
[1724101861129,1.47862185,59193.0,59192.0,0.0009042]
[1724101861329,1.47962185,59193.0,59192.0,0.0009042]
[1724101861549,1.15474485,59193.0,59192.0,0.0009042]
[1724101861734,1.15574485,59193.0,59192.0,0.0009042]
[1724101861960,1.15774485,59193.0,59192.0,0.0009042]
[1724101862175,1.14374485,59193.0,59192.0,0.0009042]
[1724101862588,1.15774485,59193.0,59192.0,0.0009042]
[1724101862808,1.55982185,59193.0,59192.0,0.0009042]
[1724101863016,1.81112185,59193.0,59192.0,0.0009042]
[1724101863216,1.79712185,59193.0,59192.0,0.0009042]
[1724101863849,1.81112185,59193.0,59192.0,0.0009042]
[1724101864469,1.80812185,59193.0,59192.0,0.0009042]
[1724101865009,1.81212185,59193.0,59192.0,0.0009042]
[1724101865313,1.87712185,59193.0,59192.0,0.0009042]
[1724101867680,2.23799885,59193.0,59192.0,0.0009042]
[1724101868371,2.22399885,59193.0,59192.0,0.0009042]
[1724101868789,2.23799885,59193.0,59192.0,0.0009042]
[1724101869433,2.32399885,59193.0,59192.0,0.0009042]
[1724101869645,2.84449885,59193.0,59192.0,0.0009042]
[1724101870059,3.18237585,59193.0,59192.0,0.0009042]
[1724101870284,3.18237585,59193.0,59185.0,0.0009042]
[1724101870285,3.16837585,59193.0,59185.0,0.0009042]
[1724101870539,0.005,59181.0,59176.0,0.0009042]
[1724101870753,1.67191377,59181.0,59176.0,0.0009042]
[1724101870968,2.37080577,59181.0,59176.0,0.0009042]
[1724101871188,2.64215454,59181.0,59176.0,0.0009042]
[1724101872768,2.98010054,59181.0,59176.0,0.0009042]
[1724101872974,2.99410054,59181.0,59176.0,0.0009042]
[1724101873411,1.52586,59177.0,59176.0,0.0009042]
[1724101873630,2.85655754,59177.0,59176.0,0.0009042]
[1724101874051,2.87955754,59177.0,59176.0,0.0009042]
[1724101875571,2.89355754,59177.0,59176.0,0.0009042]
[1724101875812,2.72220877,59177.0,59176.0,0.0009042]
[1724101876016,2.73620877,59177.0,59176.0,0.0009042]
[1724101876453,2.70820877,59177.0,59176.0,0.0009042]
[1724101876656,2.73620877,59177.0,59176.0,0.0009042]
[1724101876861,2.90755754,59177.0,59176.0,0.0009042]
[1724101877066,2.89355754,59177.0,59176.0,0.0009042]
[1724101877424,2.90755754,59177.0,59176.0,0.0009042]
[1724101881521,2.93401474,59177.0,59176.0,0.0009042]
[1724101881725,2.9439459,59177.0,59176.0,0.0009042]
[1724101883890,2.9507199,59177.0,59176.0,0.0009042]
[1724101886070,2.8449199,59177.0,59176.0,0.0009042]
[1724101886281,1.45110177,59177.0,59176.0,0.0009042]
[1724101886502,2.19303977,59177.0,59176.0,0.0009042]
[1724101887155,2.17903977,59177.0,59176.0,0.0009042]
[1724101887596,2.17803977,59177.0,59176.0,0.0009042]
[1724101887830,2.19203977,59177.0,59176.0,0.0009042]
[1724101888266,2.12703977,59177.0,59176.0,0.0009042]
[1724101888475,2.12603977,59177.0,59176.0,0.0009042]
[1724101888711,2.29838854,59177.0,59176.0,0.0009042]
[1724101888913,2.28638854,59177.0,59176.0,0.0009042]
[1724101889123,2.30038854,59177.0,59176.0,0.0009042]
[1724101892587,2.15798854,59177.0,59176.0,0.0009042]
[1724101895193,1.98363977,59177.0,59176.0,0.0840042]
[1724101895931,0.70584877,59177.0,59176.0,0.1486042]
[1724101896699,0.69184877,59177.0,59176.0,0.16835539]
[1724101897218,0.86083277,59177.0,59176.0,0.16835539]
[1724101897547,0.86083277,59177.0,59171.0,0.338198]
[1724101897548,1.250589,59172.0,59171.0,0.0002]
[1724101897750,2.18327808,59172.0,59171.0,0.0002]
[1724101897997,2.63988354,59172.0,59171.0,0.0002]
[1724101898231,2.30188654,59172.0,59171.0,0.0002]
[1724101898512,2.54498354,59172.0,59171.0,0.0002]
[1724101898736,2.78248354,59172.0,59171.0,0.0002]
[1724101899197,2.80894181,59172.0,59171.0,0.0002]
[1724101899676,2.82294181,59172.0,59171.0,0.0002]
[1724101899916,3.17493881,59172.0,59171.0,0.0002]
[1724101900153,3.26093881,59172.0,59171.0,0.0002]
[1724101900391,3.27493881,59172.0,59171.0,0.0002]
[1724101900636,3.26093881,59172.0,59171.0,0.0002]
[1724101901116,3.26093881,59172.0,59152.0,0.009042]
[1724101901117,0.004,59166.0,59152.0,0.009042]
[1724101901584,1.95798777,59166.0,59152.0,0.009042]
[1724101901834,2.03768458,59166.0,59152.0,0.009042]
[1724101902326,1.98444604,59166.0,59152.0,0.009042]
[1724101902790,2.01244604,59166.0,59152.0,0.009042]
[1724101903008,2.11289052,59166.0,59152.0,0.009042]
[1724101903435,2.16612906,59166.0,59152.0,0.009042]
[1724101903647,2.11289052,59166.0,59152.0,0.009042]
[1724101905569,2.61939052,59166.0,59152.0,0.009042]
[1724101907324,2.62926014,59166.0,59152.0,0.009042]
[1724101907549,2.78065862,59166.0,59152.0,0.009042]
[1724101907874,2.78059249,59166.0,59152.0,0.009042]
[1724101909082,2.32724739,59166.0,59165.0,0.141142]
[1724101909285,2.15291504,59166.0,59165.0,0.141142]
[1724101909481,2.15391504,59166.0,59165.0,0.141142]
[1724101909682,2.15591504,59166.0,59165.0,0.141142]
[1724101911690,2.15591504,59166.0,59165.0,0.059042]
[1724101912854,2.32726381,59166.0,59165.0,0.059042]
[1724101913310,2.32426381,59166.0,59165.0,0.059042]
[1724101914420,2.47564444,59166.0,59165.0,0.059042]
[1724101916134,2.47664444,59166.0,59165.0,0.059042]
[1724101916367,2.47864444,59166.0,59165.0,0.059042]
[1724101917228,2.47881518,59166.0,59165.0,0.059042]
[1724101917654,2.47681518,59166.0,59165.0,0.059042]
[1724101917873,2.47881518,59166.0,59165.0,0.059042]
[1724101918887,2.47581518,59166.0,59165.0,0.059042]
[1724101919100,2.32426381,59166.0,59165.0,0.059042]
[1724101919887,2.32526381,59166.0,59165.0,0.059042]
[1724101920266,2.15291504,59166.0,59165.0,0.059042]
[1724101920473,1.98395677,59166.0,59165.0,0.059042]
[1724101920683,2.0104162,59166.0,59165.0,0.059042]
[1724101921947,1.67722252,59166.0,59165.0,0.206042]
[1724101922146,1.64592577,59166.0,59165.0,0.206042]
[1724101922346,1.98395677,59166.0,59165.0,0.140742]
[1724101922499,2.13325352,59166.0,59165.0,0.140742]
[1724101922704,2.372447,59166.0,59165.0,0.059042]
[1724101922909,2.54379577,59166.0,59165.0,0.059042]
[1724101923121,2.54579577,59166.0,59165.0,0.059042]
[1724101923872,2.54279577,59166.0,59165.0,0.059042]
[1724101924895,2.54579577,59166.0,59165.0,0.059042]
[1724101925907,2.54379577,59166.0,59165.0,0.059042]
[1724101926316,2.54579577,59166.0,59165.0,0.059042]
[1724101930802,0.001,59156.0,59154.0,0.0763]
[1724101931003,0.169053,59153.0,59152.0,0.009042]
[1724101931179,1.0680821,59153.0,59152.0,0.009042]
[1724101931383,1.09332347,59153.0,59152.0,0.009042]
[1724101931604,1.43342947,59153.0,59152.0,0.009042]
[1724101931834,1.43042947,59153.0,59152.0,0.009042]
[1724101932197,1.43042947,59153.0,59123.0,0.0763]
[1724101932198,0.338226,59132.0,59123.0,0.0763]
[1724101932498,0.338226,59132.0,59116.0,0.0206774]
[1724101932499,1.14673637,59132.0,59118.0,0.0763]
[1724101932667,2.44933859,59132.0,59118.0,0.0763]
[1724101932812,2.5754521,59132.0,59118.0,0.0763]
[1724101933017,2.53053859,59132.0,59118.0,0.0763]
[1724101933214,0.003,59121.0,59118.0,0.0763]
[1724101933532,0.003,59121.0,59116.0,0.0206774]
[1724101933533,1.52357077,59121.0,59116.0,0.0206774]
[1724101933730,1.61857077,59121.0,59116.0,0.0206774]
[1724101934536,1.52357077,59121.0,59116.0,0.0206774]
[1724101934741,1.52357077,59121.0,59120.0,0.085342]
[1724101934968,1.19928177,59121.0,59120.0,0.085342]
[1724101935505,0.67784877,59121.0,59120.0,0.147042]
[1724101935701,0.84699277,59121.0,59120.0,0.147042]
[1724101936104,0.86099277,59121.0,59120.0,0.147042]
[1724101936763,0.87499277,59121.0,59120.0,0.147042]
[1724101936984,0.5345,59121.0,59120.0,0.316189]
[1724101937198,0.5345,59121.0,59120.0,0.654483]
[1724101937404,0.5345,59121.0,59120.0,1.00469043]
[1724101937607,0.5205,59121.0,59120.0,1.00469043]
[1724101937831,0.5345,59121.0,59120.0,0.15895543]
[1724101938055,0.70584877,59121.0,59120.0,0.15895543]
[1724101938203,0.84699277,59121.0,59120.0,0.15895543]
[1724101938418,0.84699277,59121.0,59120.0,0.146962]
[1724101938617,0.86799277,59121.0,59120.0,0.146962]
[1724101938816,0.86799277,59121.0,59120.0,0.15887631]
[1724101939023,0.67784877,59121.0,59120.0,0.15887631]
[1724101939375,0.69184877,59121.0,59120.0,0.15887631]
[1724101940015,0.5205,59121.0,59120.0,0.32802331]
[1724101940683,0.5205,59121.0,59120.0,0.316109]
[1724101941025,0.5205,59121.0,59120.0,0.66631731]
[1724101941630,0.5205,59121.0,59120.0,1.00461131]
[1724101944171,0.5205,59121.0,59120.0,0.66631731]
[1724101945192,0.69184877,59121.0,59120.0,0.15887631]
[1724101946162,0.86099277,59121.0,59120.0,0.09717631]
[1724101946364,1.19928177,59121.0,59120.0,0.09717631]
[1724101946571,0.86099277,59121.0,59120.0,0.09717631]
[1724101947426,0.69184877,59121.0,59120.0,0.09717631]
[1724101948349,0.86099277,59121.0,59120.0,0.09717631]
[1724101948581,0.86099277,59121.0,59120.0,0.085262]
[1724101948929,0.69184877,59121.0,59120.0,0.0974218]
[1724101949411,0.86099277,59121.0,59120.0,0.0974218]
[1724101949789,1.19928177,59121.0,59120.0,0.0974218]
[1724101950013,1.19928177,59121.0,59120.0,0.085262]
[1724101950373,1.19928177,59121.0,59120.0,0.0974218]
[1724101950592,1.19928177,59121.0,59120.0,0.085262]
[1724101950960,1.19928177,59121.0,59120.0,0.0974218]
[1724101950961,0.86099277,59121.0,59120.0,0.0974218]
[1724101951164,0.69184877,59121.0,59120.0,0.0974218]
[1724101951503,0.86099277,59121.0,59120.0,0.0974218]
[1724101953002,1.19928177,59121.0,59120.0,0.0974218]
[1724101953166,0.86099277,59121.0,59120.0,0.0974218]
[1724101954030,0.69184877,59121.0,59120.0,0.2665688]
[1724101954623,0.69184877,59121.0,59120.0,0.0974218]
[1724101954849,0.69184877,59121.0,59120.0,0.2665688]
[1724101956039,0.5205,59121.0,59120.0,0.9431568]
[1724101956442,0.5205,59121.0,59120.0,0.6048628]
[1724101957124,0.5205,59121.0,59120.0,0.9431568]
[1724101958161,0.5205,59121.0,59120.0,0.6048628]
[1724101958773,1.26824537,59121.0,59120.0,0.0211218]
[1724101959177,1.60653437,59121.0,59120.0,0.008962]
[1724101960120,1.19928177,59121.0,59120.0,0.008962]
[1724101960625,1.19928177,59121.0,59120.0,0.02110343]
[1724101960854,1.19928177,59121.0,59120.0,0.008962]
[1724101961081,1.19928177,59121.0,59120.0,0.02110343]
[1724101961338,1.19928177,59121.0,59120.0,0.008962]
[1724101961598,1.53757077,59121.0,59120.0,0.02110343]
[1724101961851,1.53757077,59121.0,59120.0,0.008962]
[1724101962091,1.87585977,59121.0,59120.0,0.008962]
[1724101962342,1.53757077,59121.0,59120.0,0.008962]
[1724101962824,1.59927077,59121.0,59120.0,0.008962]
[1724101963073,1.60027077,59121.0,59120.0,0.008962]
[1724101963308,1.59927077,59121.0,59120.0,0.008962]
[1724101963793,1.77077785,59121.0,59120.0,0.008962]
[1724101964286,2.10906685,59121.0,59120.0,0.008962]
[1724101964527,2.5506364,59121.0,59120.0,0.008962]
[1724101964996,2.25961464,59121.0,59120.0,0.008962]
[1724101965231,2.2093474,59121.0,59120.0,0.008962]
[1724101965537,2.2043474,59121.0,59120.0,0.008962]
[1724101965767,2.2183474,59121.0,59120.0,0.008962]
[1724101965995,2.5796364,59121.0,59120.0,0.008962]
[1724101966210,2.6299453,59121.0,59120.0,0.008962]
[1724101966440,2.6239453,59121.0,59120.0,0.008962]
[1724101966664,2.6339453,59121.0,59120.0,0.008962]
[1724101966887,2.6359453,59121.0,59120.0,0.008962]
[1724101967539,2.5856364,59121.0,59120.0,0.008962]
[1724101968143,2.5876364,59121.0,59120.0,0.008962]
[1724101968392,2.66309976,59121.0,59120.0,0.008962]
[1724101968594,2.65769259,59121.0,59120.0,0.008962]
[1724101968748,2.48918551,59121.0,59120.0,0.008962]
[1724101968947,2.49018551,59121.0,59120.0,0.008962]
[1724101969389,2.41672215,59121.0,59120.0,0.008962]
[1724101969574,2.41372215,59121.0,59120.0,0.008962]
[1724101969972,2.05243315,59121.0,59120.0,0.008962]
[1724101970196,2.1279604,59121.0,59120.0,0.008962]
[1724101970375,2.1289604,59121.0,59120.0,0.008962]
[1724101970573,2.22678192,59121.0,59120.0,0.008962]
[1724101970778,2.32530917,59121.0,59120.0,0.008962]
[1724101970979,2.24978192,59121.0,59120.0,0.008962]
[1724101971177,2.35048415,59121.0,59120.0,0.008962]
[1724101971380,2.58807092,59121.0,59120.0,0.008962]
[1724101971584,2.68877315,59121.0,59120.0,0.008962]
[1724101971780,2.58807092,59121.0,59120.0,0.008962]
[1724101972176,2.35048415,59121.0,59120.0,0.008962]
[1724101972604,2.09933538,59121.0,59120.0,0.008962]
[1724101973011,1.99863315,59121.0,59120.0,0.008962]
[1724101974255,1.57564415,59121.0,59120.0,0.008962]
[1724101974430,1.6512613,59121.0,59120.0,0.008962]
[1724101974634,1.57564415,59121.0,59120.0,0.008962]
[1724101975417,1.67646458,59121.0,59120.0,0.008962]
[1724101976357,1.67728658,59121.0,59120.0,0.008962]
[1724101976560,1.57646615,59121.0,59120.0,0.008962]
[1724101976761,1.70277838,59121.0,59120.0,0.008962]
[1724101977432,1.57646615,59121.0,59120.0,0.008962]
[1724101977929,1.57746615,59121.0,59120.0,0.008962]
[1724101978102,1.57646615,59121.0,59120.0,0.008962]
[1724101978312,1.57746615,59121.0,59120.0,0.008962]
[1724101979276,1.57646615,59121.0,59120.0,0.008962]
[1724101980141,2.35600392,59121.0,59120.0,0.008962]
[1724101980350,2.5226234,59121.0,59120.0,0.008962]
[1724101980558,2.69029292,59121.0,59120.0,0.008962]
[1724101980764,2.69229292,59121.0,59120.0,0.008962]
[1724101980966,2.69429292,59121.0,59120.0,0.008962]
[1724101981193,2.67453898,59121.0,59120.0,0.008962]
[1724101981400,2.68853898,59121.0,59120.0,0.008962]
[1724101981611,2.70921698,59121.0,59120.0,0.008962]
[1724101982033,2.69721698,59121.0,59120.0,0.008962]
[1724101982233,2.52662215,59121.0,59120.0,0.008962]
[1724101982506,2.54062215,59121.0,59120.0,0.008962]
[1724101983646,2.71197092,59121.0,59120.0,0.008962]
[1724101984715,2.54062215,59121.0,59120.0,0.008962]
[1724101985476,2.06043315,59121.0,59120.0,0.008962]
[1724101986577,2.06043315,59121.0,59120.0,0.090562]
[1724101986578,1.91675515,59121.0,59120.0,0.090562]
[1724101987802,1.57846615,59121.0,59120.0,0.090562]
[1724101990986,1.24017715,59121.0,59120.0,0.090562]
[1724101991187,1.24017715,59121.0,59120.0,0.151462]
[1724101991188,0.73274415,59121.0,59120.0,0.151462]
[1724101991475,0.77991515,59121.0,59120.0,0.151462]
[1724101991583,1.11820415,59121.0,59120.0,0.16264048]
[1724101991785,0.70405883,59121.0,59120.0,0.16264048]
[1724101992009,0.75462662,59121.0,59120.0,0.16264048]
[1724101992412,0.74062662,59121.0,59120.0,0.16264048]
[1724101992663,0.74962662,59121.0,59120.0,0.16264048]
[1724101992863,0.52991483,59121.0,59120.0,0.16264048]
[1724101993468,0.58047859,59121.0,59120.0,0.33178748]
[1724101993875,0.58047859,59121.0,59120.0,0.16264048]
[1724101994078,0.74962259,59121.0,59120.0,0.16264048]
[1724101994316,0.73562259,59121.0,59120.0,0.16264048]
[1724101994843,0.74762338,59121.0,59120.0,0.16264048]
[1724101995385,0.57847938,59121.0,59120.0,0.16264048]
[1724101995821,0.74762338,59121.0,59120.0,0.16264048]
[1724101996217,0.74762186,59121.0,59120.0,0.16264048]
[1724101996744,0.69705883,59121.0,59120.0,0.16264048]
[1724101996948,0.74762125,59121.0,59120.0,0.16264048]
[1724101998074,0.57847725,59121.0,59120.0,0.16264048]
[1724101998275,0.57847587,59121.0,59120.0,0.16264048]
[1724102000400,0.57747587,59121.0,59120.0,0.16264048]
[1724102001284,0.57747575,59121.0,59120.0,0.16264048]
[1724102002388,0.74661975,59121.0,59120.0,0.16257304]
[1724102002593,0.57747575,59121.0,59120.0,0.16257304]
[1724102004420,0.52691483,59121.0,59120.0,0.16257304]
[1724102004626,0.52691483,59121.0,59120.0,0.33172004]
[1724102004820,0.57745621,59121.0,59120.0,0.33172004]
[1724102005461,0.57745621,59121.0,59120.0,0.67001404]
[1724102005710,0.57745621,59121.0,59120.0,0.33172004]
[1724102006510,0.57745621,59121.0,59120.0,0.67001404]
[1724102006721,0.57745621,59121.0,59120.0,0.33172004]
[1724102008138,0.52691483,59121.0,59120.0,1.34660204]
[1724102008350,0.52691483,59121.0,59120.0,1.44170204]
[1724102008738,0.52691483,59121.0,59120.0,1.34660204]
[1724102009783,0.51791483,59121.0,59120.0,1.34660204]
[1724102010178,0.50591483,59121.0,59120.0,1.34660204]
[1724102010960,0.51991483,59121.0,59120.0,1.33542356]
[1724102011246,0.51491483,59121.0,59120.0,1.33542356]
[1724102011439,0.50791483,59121.0,59120.0,1.33542356]
[1724102011682,0.50891483,59121.0,59120.0,1.33542356]
[1724102014698,0.001,59121.0,59120.0,1.33542356]
[1724102016441,0.001,59121.0,59120.0,1.43052356]
[1724102017228,0.001,59121.0,59120.0,1.33542356]
[1724102018135,0.001,59121.0,59120.0,1.43052356]
[1724102020062,0.001,59121.0,59120.0,1.76881756]
[1724102020683,0.001,59121.0,59120.0,1.86881756]
[1724102021211,0.000823,59127.0,59120.0,1.86881756]
[1724102021212,0.000823,59127.0,59126.0,1.32451]
[1724102022022,0.000823,59127.0,59126.0,1.33635848]
[1724102023252,0.001823,59127.0,59126.0,1.33635848]
[1724102023659,0.003823,59127.0,59126.0,1.33635848]
[1724102025137,0.002823,59127.0,59126.0,1.33635848]
[1724102025348,0.002823,59127.0,59126.0,1.84596725]
[1724102025576,0.002823,59127.0,59126.0,1.94696725]
[1724102026188,0.002823,59127.0,59126.0,1.94896725]
[1724102026400,0.002823,59127.0,59126.0,1.95899101]
[1724102026608,0.000823,59127.0,59126.0,1.95899101]
[1724102026814,0.000823,59127.0,59126.0,1.96099101]
[1724102027025,0.000823,59127.0,59126.0,1.95899101]
[1724102027234,0.001823,59127.0,59126.0,1.95899101]
[1724102027644,0.001823,59127.0,59126.0,1.96299101]
[1724102028093,0.001823,59127.0,59126.0,2.30325101]
[1724102028710,0.001823,59127.0,59126.0,3.80525101]
[1724102029324,0.001823,59127.0,59126.0,3.46299101]
[1724102039091,0.001823,59127.0,59126.0,3.46499101]
[1724102039530,0.001823,59127.0,59126.0,3.46699101]
[1724102040143,0.001823,59127.0,59126.0,3.46299101]
[1724102042045,0.001823,59127.0,59126.0,3.46499101]
[1724102042902,0.001823,59127.0,59126.0,3.46699101]
[1724102043598,0.001823,59127.0,59126.0,3.46299101]
[1724102043824,0.00163133,59127.0,59126.0,3.46299101]
[1724102047490,0.00163133,59127.0,59126.0,3.39909101]
[1724102050301,0.00163133,59127.0,59126.0,3.38724253]
[1724102055199,0.00163133,59127.0,59126.0,3.38924253]
[1724102055402,0.00163133,59127.0,59126.0,3.38724253]
[1724102055610,0.00163133,59127.0,59126.0,3.38924253]
[1724102056262,0.00163133,59127.0,59126.0,3.39124253]
[1724102056466,0.00163133,59127.0,59126.0,3.38724253]
[1724102056873,0.00163133,59127.0,59126.0,3.38924253]
[1724102057079,0.00163133,59127.0,59126.0,3.38724253]
[1724102057317,0.00163133,59127.0,59126.0,3.38924253]
[1724102057522,0.00163133,59127.0,59126.0,3.38724253]
[1724102063733,0.00163133,59127.0,59126.0,3.38814563]
[1724102065212,0.1405,59126.0,59121.0,0.0009042]
[1724102065426,0.6063341,59127.0,59121.0,0.0009042]
[1724102065427,0.743024,59122.0,59121.0,0.0009042]
[1724102065651,1.27912931,59122.0,59121.0,0.0009042]
[1724102066308,1.27131187,59122.0,59121.0,0.0009042]
[1724102066518,1.60959487,59122.0,59121.0,0.0009042]
[1724102066723,1.60959487,59122.0,59121.0,0.0019042]
[1724102066724,1.62059487,59122.0,59121.0,0.0019042]
[1724102067150,1.60959487,59122.0,59121.0,0.0009042]
[1724102067364,1.62359487,59122.0,59121.0,0.0039042]
[1724102068464,1.74978036,59122.0,59121.0,0.0019042]
[1724102068947,1.76378036,59122.0,59121.0,0.0019042]
[1724102069151,1.63757054,59122.0,59121.0,0.0019042]
[1724102069575,1.73846801,59122.0,59121.0,0.0019042]
[1724102069778,1.73846806,59122.0,59121.0,0.0019042]
[1724102070200,1.63757054,59122.0,59121.0,0.0019042]
[1724102070405,1.69458108,59122.0,59121.0,0.0019042]
[1724102071028,1.6945808,59122.0,59121.0,0.0019042]
[1724102071262,1.69457713,59122.0,59121.0,0.0019042]
[1724102072318,1.66933019,59122.0,59121.0,0.0019042]
[1724102073594,1.61893877,59122.0,59121.0,0.0019042]
[1724102073803,1.23593116,59122.0,59121.0,0.0019042]
[1724102074038,1.18555577,59122.0,59121.0,0.0019042]
[1724102074663,1.57421416,59122.0,59121.0,0.0019042]
[1724102074876,1.52383877,59122.0,59121.0,0.0019042]
[1724102075080,1.52483877,59122.0,59121.0,0.0019042]
[1724102075314,1.52683877,59122.0,59121.0,0.0019042]
[1724102075520,1.52383877,59122.0,59121.0,0.0019042]
[1724102076135,1.52683877,59122.0,59121.0,0.0019042]
[1724102076337,1.57717302,59122.0,59121.0,0.0019042]
[1724102076531,1.52683877,59122.0,59121.0,0.0019042]
[1724102076970,1.55178902,59122.0,59121.0,0.0019042]
[1724102077394,1.55478902,59122.0,59121.0,0.0019042]
[1724102077602,1.55178902,59122.0,59121.0,0.0019042]
[1724102077820,1.52483877,59122.0,59121.0,0.0019042]
[1724102078239,1.57715735,59122.0,59121.0,0.0019042]
[1724102079358,1.52683877,59122.0,59121.0,0.0019042]
[1724102080259,1.52383877,59122.0,59121.0,0.0019042]
[1724102080466,1.9561591,59122.0,59121.0,0.0019042]
[1724102080879,1.9581591,59122.0,59121.0,0.0019042]
[1724102081307,1.9551591,59122.0,59121.0,0.0019042]
[1724102081552,1.86312177,59122.0,59121.0,0.0019042]
[1724102081754,1.86512177,59122.0,59121.0,0.0019042]
[1724102083615,1.86312177,59122.0,59121.0,0.0019042]
[1724102083854,1.86212177,59122.0,59121.0,0.0019042]
[1724102084697,1.86512177,59122.0,59121.0,0.0019042]
[1724102084910,1.86312177,59122.0,59121.0,0.0019042]
[1724102085584,1.86212177,59122.0,59121.0,0.0019042]
[1724102086373,1.86312177,59122.0,59121.0,0.0019042]
[1724102086605,1.86512177,59122.0,59121.0,0.0019042]
[1724102087046,2.03647054,59122.0,59121.0,0.0019042]
[1724102087486,1.86512177,59122.0,59121.0,0.0019042]
[1724102089668,1.86212177,59122.0,59121.0,0.0019042]
[1724102090831,1.86312177,59122.0,59121.0,0.0019042]
[1724102091239,1.86512177,59122.0,59121.0,0.0019042]
[1724102091450,2.06355429,59122.0,59121.0,0.0019042]
[1724102091647,2.15947054,59122.0,59121.0,0.0019042]
[1724102092060,2.27861316,59122.0,59121.0,0.0019042]
[1724102092252,2.30509527,59122.0,59121.0,0.0019042]
[1724102092698,2.1337465,59122.0,59121.0,0.0019042]
[1724102096519,2.13376273,59122.0,59121.0,0.0019042]
[1724102097303,2.03317026,59122.0,59121.0,0.0019042]
[1724102099383,2.15891085,59122.0,59121.0,0.0019042]
[1724102099801,2.15991085,59122.0,59121.0,0.0019042]
[1724102100018,2.54480203,59122.0,59121.0,0.0019042]
[1724102100235,2.54480203,59122.0,59121.0,0.00082433]
[1724102100474,2.5916741,59122.0,59121.0,0.00082433]
[1724102100876,2.5776741,59122.0,59121.0,0.00082433]
[1724102101090,2.009289,59121.0,59120.0,0.00889456]
[1724102101297,3.07320364,59121.0,59120.0,0.00889456]
[1724102101952,2.90185487,59121.0,59120.0,0.00889456]
[1724102102161,3.00207811,59121.0,59120.0,0.00889456]
[1724102102368,2.17454627,59121.0,59120.0,0.00889456]
[1724102102593,2.26911395,59121.0,59120.0,0.00889456]
[1724102102799,2.22537625,59121.0,59120.0,0.00889456]
[1724102103008,2.25337625,59121.0,59120.0,0.00889456]
[1724102103421,2.13312641,59121.0,59120.0,0.00889456]
[1724102103635,2.12822641,59121.0,59120.0,0.00889456]
[1724102103842,2.07787188,59121.0,59120.0,0.00889456]
[1724102104263,2.12822707,59121.0,59120.0,0.00889456]
[1724102104469,2.10087188,59121.0,59120.0,0.00889456]
[1724102104614,2.15124764,59121.0,59120.0,0.00889456]
[1724102104816,2.15124603,59121.0,59120.0,0.00889456]
[1724102105222,2.17640467,59121.0,59120.0,0.00889456]
[1724102105522,2.10087188,59121.0,59120.0,0.00889456]
[1724102105721,2.1950689,59121.0,59120.0,0.00889456]
[1724102105946,2.10087188,59121.0,59120.0,0.00889456]
[1724102106284,1.24069388,59121.0,59120.0,0.00889456]
[1724102107032,1.21421177,59121.0,59120.0,0.08389456]
[1724102107183,1.18621177,59121.0,59120.0,0.08389456]
[1724102107360,1.23663768,59121.0,59120.0,0.08389456]
[1724102107565,1.61413305,59121.0,59120.0,0.08389456]
[1724102107793,1.64061022,59121.0,59120.0,0.08389456]
[1724102107967,1.56497794,59121.0,59120.0,0.08389456]
[1724102108175,1.58361325,59121.0,59120.0,0.08389456]
[1724102108524,1.57897794,59121.0,59120.0,0.08389456]
[1724102108654,1.59761328,59121.0,59120.0,0.08389456]
[1724102108859,1.67057953,59121.0,59120.0,0.16855456]
[1724102109058,1.38183394,59121.0,59120.0,0.16855456]
[1724102109386,1.28993614,59121.0,59120.0,0.16855456]
[1724102109556,1.27593614,59121.0,59120.0,0.16855456]
[1724102109696,1.28993614,59121.0,59120.0,0.16855456]
[1724102109897,1.38503614,59121.0,59120.0,0.16855456]
[1724102110305,1.32798023,59121.0,59120.0,0.16855456]
[1724102110738,0.65524764,59121.0,59120.0,0.16855456]
[1724102110931,0.61129306,59121.0,59120.0,0.67599556]
[1724102111129,0.53543,59121.0,59120.0,0.67599556]
[1724102111410,0.61129306,59121.0,59120.0,0.16855456]
[1724102111620,0.64920578,59121.0,59120.0,0.16855456]
[1724102111815,0.70642126,59121.0,59120.0,0.33770156]
[1724102112242,0.61132126,59121.0,59120.0,0.33770156]
[1724102112444,0.70642126,59121.0,59120.0,0.16855456]
[1724102112660,0.81834642,59121.0,59120.0,0.16855456]
[1724102113075,0.81834642,59121.0,59120.0,0.14355456]
[1724102113313,0.87554502,59121.0,59120.0,0.14355456]
[1724102113919,1.21383402,59121.0,59120.0,0.08466]
[1724102114105,0.87554502,59121.0,59120.0,0.08466]
[1724102114263,1.21383402,59121.0,59120.0,0.08466]
[1724102114605,0.87554502,59121.0,59120.0,0.08466]
[1724102115338,0.70640102,59121.0,59120.0,0.08466]
[1724102115493,0.63053,59121.0,59120.0,0.08466]
[1724102115905,0.799674,59121.0,59120.0,0.08466]
[1724102116109,0.799674,59121.0,59120.0,0.16276]
[1724102116351,0.63053,59121.0,59120.0,0.16276]
[1724102116640,0.53543,59121.0,59120.0,0.16276]
[1724102116789,0.53543,59121.0,59120.0,0.331907]
[1724102116990,0.58597274,59121.0,59120.0,0.670201]
[1724102117189,0.58597274,59121.0,59120.0,0.732101]
[1724102117394,0.53543,59121.0,59120.0,0.732101]
[1724102117827,0.58597274,59121.0,59120.0,0.732101]
[1724102118025,0.58597274,59121.0,59120.0,0.393807]
[1724102118233,0.53543,59121.0,59120.0,0.393807]
[1724102118407,0.53543,59121.0,59120.0,0.732101]
[1724102119190,0.58597274,59121.0,59120.0,0.732101]
[1724102120486,0.53543,59121.0,59120.0,0.732101]
[1724102121222,0.58597274,59121.0,59120.0,0.732101]
[1724102121389,0.53543,59121.0,59120.0,0.732101]
[1724102123106,0.58597274,59121.0,59120.0,0.732101]
[1724102123304,0.53543,59121.0,59120.0,0.732101]
[1724102123542,0.53543,59121.0,59120.0,0.74364248]
[1724102124322,0.53543,59121.0,59120.0,1.17703648]
[1724102124567,0.53543,59121.0,59120.0,1.61623468]
[1724102124923,0.536252,59121.0,59120.0,1.61623468]
[1724102125540,0.508252,59121.0,59120.0,1.61623468]
[1724102125785,0.508252,59121.0,59120.0,1.61723468]
[1724102126202,0.508252,59121.0,59120.0,1.61623468]